[Event "*** Titled Tuesday Blitz"]
[Site "Chess.com"]
[Date "2020.04.07"]
[Round "9"]
[White "AsselLesbekova"]
[Black "Frogo47"]
[Result "1-0"]
[WhiteElo "2329"]
[BlackElo "2469"]
[TimeControl "180+1"]
[EndTime "14:47:37 PDT"]
[Termination "AsselLesbekova won by resignation"]

1. e4 {[%clk 0:03:00.9]} 1... c5 {[%clk 0:02:52.1]} 2. Nf3 {[%clk 0:03:00.2]}
2... d6 {[%clk 0:02:52.4]} 3. Bb5+ {[%clk 0:02:58.5]} 3... Nd7 {[%clk
0:02:52.5]} 4. Bxd7+ {[%clk 0:02:57.5]} 4... Bxd7 {[%clk 0:02:52.3]} 5. O-O
{[%clk 0:02:57.9]} 5... Nf6 {[%clk 0:02:52.3]} 6. Qe2 {[%clk 0:02:58.4]} 6... e5
{[%clk 0:02:51.7]} 7. b3 {[%clk 0:02:57.2]} 7... Be7 {[%clk 0:02:51.9]} 8. Bb2
{[%clk 0:02:56.9]} 8... O-O {[%clk 0:02:52.8]} 9. c3 {[%clk 0:02:57.2]} 9... Bc6
{[%clk 0:02:52.3]} 10. d3 {[%clk 0:02:55.3]} 10... Re8 {[%clk 0:02:52]} 11. Nbd2
{[%clk 0:02:54.7]} 11... b5 {[%clk 0:02:51.2]} 12. d4 {[%clk 0:02:54.3]} 12...
exd4 {[%clk 0:02:49.1]} 13. cxd4 {[%clk 0:02:55.2]} 13... Bf8 {[%clk 0:02:49.8]}
14. dxc5 {[%clk 0:02:49.1]} 14... Nxe4 {[%clk 0:02:47]} 15. Nxe4 {[%clk
0:02:11]} 15... Rxe4 {[%clk 0:02:45.9]} 16. Qc2 {[%clk 0:02:11.3]} 16... dxc5
{[%clk 0:02:34.3]} 17. Rad1 {[%clk 0:02:09.4]} 17... Qc8 {[%clk 0:02:29.1]} 18.
Ne5 {[%clk 0:02:06.8]} 18... Qe6 {[%clk 0:02:15.9]} 19. Nxc6 {[%clk 0:02:03.5]}
19... Qxc6 {[%clk 0:02:15.1]} 20. Rfe1 {[%clk 0:01:55.7]} 20... Rae8 {[%clk
0:02:13.3]} 21. Rxe4 {[%clk 0:01:52.5]} 21... Qxe4 {[%clk 0:02:11.8]} 22. Qxe4
{[%clk 0:01:48.6]} 22... Rxe4 {[%clk 0:02:12.7]} 23. Kf1 {[%clk 0:01:48.8]}
23... f6 {[%clk 0:02:09.1]} 24. Rd8 {[%clk 0:01:45.2]} 24... Kf7 {[%clk
0:02:08]} 25. Rb8 {[%clk 0:01:36.9]} 25... b4 {[%clk 0:02:07.4]} 26. Ra8 {[%clk
0:01:34.9]} 26... Re7 {[%clk 0:02:06.7]} 27. f3 {[%clk 0:01:31.8]} 27... Rd7
{[%clk 0:02:05.1]} 28. Ke2 {[%clk 0:01:30.9]} 28... h5 {[%clk 0:02:02.4]} 29.
Bc1 {[%clk 0:01:24.6]} 29... Bd6 {[%clk 0:02:01.1]} 30. Be3 {[%clk 0:01:23.7]}
30... f5 {[%clk 0:01:42.1]} 31. g3 {[%clk 0:01:21.5]} 31... Rc7 {[%clk
0:01:39.8]} 32. Kd3 {[%clk 0:01:19.1]} 32... h4 {[%clk 0:01:34.9]} 33. Bf2
{[%clk 0:01:15.3]} 33... hxg3 {[%clk 0:01:33.3]} 34. hxg3 {[%clk 0:01:16.2]}
34... Be7 {[%clk 0:01:09.5]} 35. Kc4 {[%clk 0:01:14.3]} 35... Rd7 {[%clk
0:01:08.2]} 36. Rc8 {[%clk 0:01:10.6]} 36... Rd2 {[%clk 0:01:07.5]} 37. Bxc5
{[%clk 0:01:08.3]} 37... Rxa2 {[%clk 0:01:04.2]} 38. Kxb4 {[%clk 0:01:04.1]}
38... Rc2 {[%clk 0:00:38.1]} 39. Kb5 {[%clk 0:00:52.9]} 39... g5 {[%clk
0:00:33.7]} 40. b4 {[%clk 0:00:49.9]} 40... Bxc5 {[%clk 0:00:29.9]} 41. Rxc5
{[%clk 0:00:47.5]} 41... Rb2 {[%clk 0:00:22.8]} 42. Rxf5+ {[%clk 0:00:46.2]}
42... Kg6 {[%clk 0:00:23.7]} 43. g4 {[%clk 0:00:42.9]} 43... Ra2 {[%clk
0:00:22]} 44. Rd5 {[%clk 0:00:36.5]} 44... Kf6 {[%clk 0:00:21]} 45. Rd7 {[%clk
0:00:36]} 45... Ke5 {[%clk 0:00:20.2]} 46. Rf7 {[%clk 0:00:35]} 46... a6+ {[%clk
0:00:17.9]} 47. Kb6 {[%clk 0:00:33.6]} 47... Ra3 {[%clk 0:00:18]} 48. Rf5+
{[%clk 0:00:33.1]} 48... Kd4 {[%clk 0:00:18]} 49. Rxg5 {[%clk 0:00:32.9]} 49...
Rxf3 {[%clk 0:00:17]} 50. Kxa6 {[%clk 0:00:33.8]} 50... Kc4 {[%clk 0:00:17.5]}
51. b5 {[%clk 0:00:33.5]} 51... Ra3+ {[%clk 0:00:18.4]} 52. Kb7 {[%clk
0:00:33.1]} 52... Rh3 {[%clk 0:00:15]} 53. b6 {[%clk 0:00:30.8]} 1-0

[Event "*** Titled Tuesday Blitz"]
[Site "Chess.com"]
[Date "2020.04.07"]
[Round "9"]
[White "dmvlad"]
[Black "Funkmaus"]
[Result "0-1"]
[WhiteElo "2282"]
[BlackElo "2199"]
[TimeControl "180+1"]
[EndTime "14:47:37 PDT"]
[Termination "Funkmaus won on time"]

1. e4 {[%clk 0:03:00.9]} 1... c6 {[%clk 0:02:59.8]} 2. d4 {[%clk 0:02:55.4]}
2... d5 {[%clk 0:03:00.7]} 3. Nc3 {[%clk 0:02:56.2]} 3... dxe4 {[%clk
0:03:00.6]} 4. Nxe4 {[%clk 0:02:57.1]} 4... Nf6 {[%clk 0:03:00.9]} 5. Nxf6+
{[%clk 0:02:56.8]} 5... exf6 {[%clk 0:03:01.5]} 6. Be3 {[%clk 0:02:57.7]} 6...
Bd6 {[%clk 0:03:00.8]} 7. h3 {[%clk 0:02:57.2]} 7... Bf5 {[%clk 0:02:57.7]} 8.
Bd3 {[%clk 0:02:56.4]} 8... Bg6 {[%clk 0:02:57]} 9. Bxg6 {[%clk 0:02:55.4]} 9...
hxg6 {[%clk 0:02:57.9]} 10. Nf3 {[%clk 0:02:55.5]} 10... Nd7 {[%clk 0:02:51.2]}
11. Qd3 {[%clk 0:02:52.3]} 11... f5 {[%clk 0:02:48.1]} 12. Qb3 {[%clk
0:02:50.6]} 12... Qc7 {[%clk 0:02:17.3]} 13. Ng5 {[%clk 0:02:30.5]} 13... Nf6
{[%clk 0:02:15.5]} 14. O-O-O {[%clk 0:02:28.3]} 14... f4 {[%clk 0:01:43.1]} 15.
Bd2 {[%clk 0:02:23]} 15... O-O {[%clk 0:01:40]} 16. Rhe1 {[%clk 0:01:52.5]}
16... Rfe8 {[%clk 0:01:31.8]} 17. c4 {[%clk 0:01:29.9]} 17... c5 {[%clk
0:01:21.9]} 18. d5 {[%clk 0:01:25.8]} 18... a6 {[%clk 0:01:01.9]} 19. a4 {[%clk
0:01:10.8]} 19... b5 {[%clk 0:00:53.4]} 20. Rxe8+ {[%clk 0:01:06.2]} 20... Rxe8
{[%clk 0:00:51.9]} 21. axb5 {[%clk 0:01:05.1]} 21... axb5 {[%clk 0:00:51.9]} 22.
Qxb5 {[%clk 0:01:04.9]} 22... Rb8 {[%clk 0:00:44.9]} 23. Qc6 {[%clk 0:00:31.2]}
23... Qe7 {[%clk 0:00:38.1]} 24. Re1 {[%clk 0:00:28.5]} 24... Qf8 {[%clk
0:00:38.2]} 25. Bc3 {[%clk 0:00:25.1]} 25... Rc8 {[%clk 0:00:30.9]} 26. Qa4
{[%clk 0:00:17]} 26... Ra8 {[%clk 0:00:30.8]} 27. Qc2 {[%clk 0:00:16.9]} 27...
Nh5 {[%clk 0:00:21.5]} 28. Ne4 {[%clk 0:00:15.1]} 28... Be7 {[%clk 0:00:20.2]}
29. f3 {[%clk 0:00:14.1]} 29... f5 {[%clk 0:00:18]} 30. Nf2 {[%clk 0:00:13.4]}
30... Bf6 {[%clk 0:00:18.1]} 31. Kd2 {[%clk 0:00:13.3]} 31... Re8 {[%clk
0:00:16]} 32. Qd3 {[%clk 0:00:12.5]} 32... Re3 {[%clk 0:00:15.7]} 33. Rxe3
{[%clk 0:00:11.6]} 33... fxe3+ {[%clk 0:00:16.6]} 34. Qxe3 {[%clk 0:00:12.5]}
34... Qd8 {[%clk 0:00:15.4]} 35. Nd3 {[%clk 0:00:10.6]} 35... Bg5 {[%clk
0:00:14.9]} 36. f4 {[%clk 0:00:10.5]} 36... Bh6 {[%clk 0:00:13.1]} 37. g3 {[%clk
0:00:09.6]} 37... g5 {[%clk 0:00:12.2]} 38. Qe6+ {[%clk 0:00:08.2]} 38... Kh7
{[%clk 0:00:11.9]} 39. Qxf5+ {[%clk 0:00:08.1]} 39... g6 {[%clk 0:00:11.8]} 40.
Qf7+ {[%clk 0:00:08.1]} 40... Ng7 {[%clk 0:00:12.3]} 41. Ne5 {[%clk 0:00:06]}
41... Qd6 {[%clk 0:00:10.7]} 0-1

[Event "*** Titled Tuesday Blitz"]
[Site "Chess.com"]
[Date "2020.04.07"]
[Round "9"]
[White "Firegrizzly"]
[Black "Nancy11111"]
[Result "0-1"]
[WhiteElo "2598"]
[BlackElo "2416"]
[TimeControl "180+1"]
[EndTime "14:47:39 PDT"]
[Termination "Nancy11111 won on time"]

1. e4 {[%clk 0:03:00.9]} 1... c5 {[%clk 0:02:59.5]} 2. Nf3 {[%clk 0:03:00.1]}
2... d6 {[%clk 0:02:55.2]} 3. Bb5+ {[%clk 0:02:58.9]} 3... Bd7 {[%clk
0:02:54.2]} 4. c4 {[%clk 0:02:58.6]} 4... g6 {[%clk 0:02:51.2]} 5. Nc3 {[%clk
0:02:56.9]} 5... Bg7 {[%clk 0:02:50.4]} 6. d4 {[%clk 0:02:57.5]} 6... cxd4
{[%clk 0:02:49.4]} 7. Nxd4 {[%clk 0:02:57.7]} 7... Nf6 {[%clk 0:02:49.9]} 8. O-O
{[%clk 0:02:55.7]} 8... a6 {[%clk 0:02:48.4]} 9. Bxd7+ {[%clk 0:02:54.5]} 9...
Nbxd7 {[%clk 0:02:49.3]} 10. Be3 {[%clk 0:02:45.6]} 10... O-O {[%clk 0:02:16.9]}
11. b3 {[%clk 0:02:40.8]} 11... Qa5 {[%clk 0:02:09]} 12. Rc1 {[%clk 0:02:38.6]}
12... Rac8 {[%clk 0:02:05.1]} 13. a4 {[%clk 0:02:36.4]} 13... e6 {[%clk
0:02:00.4]} 14. Nde2 {[%clk 0:02:15.3]} 14... Ng4 {[%clk 0:01:56.4]} 15. Bd2
{[%clk 0:02:11.2]} 15... Nc5 {[%clk 0:01:51.5]} 16. f3 {[%clk 0:01:57.8]} 16...
Ne5 {[%clk 0:01:46.6]} 17. b4 {[%clk 0:01:45.9]} 17... Qxb4 {[%clk 0:01:43.3]}
18. Nd5 {[%clk 0:01:45.9]} 18... Qxa4 {[%clk 0:01:41.4]} 19. Ne7+ {[%clk
0:01:46.2]} 19... Kh8 {[%clk 0:01:38.5]} 20. Nxc8 {[%clk 0:01:47.1]} 20... Rxc8
{[%clk 0:01:36.2]} 21. Bc3 {[%clk 0:01:35.2]} 21... Qc6 {[%clk 0:01:31.7]} 22.
Nd4 {[%clk 0:01:31.5]} 22... Qc7 {[%clk 0:01:28.7]} 23. Qe2 {[%clk 0:01:22.2]}
23... Na4 {[%clk 0:01:24.5]} 24. Ba1 {[%clk 0:01:20.8]} 24... Nxc4 {[%clk
0:01:23]} 25. f4 {[%clk 0:01:14.8]} 25... b5 {[%clk 0:01:20.8]} 26. Kh1 {[%clk
0:01:12.2]} 26... Nc5 {[%clk 0:01:14]} 27. f5 {[%clk 0:01:07.3]} 27... e5 {[%clk
0:01:11.9]} 28. f6 {[%clk 0:01:05.8]} 28... Bh6 {[%clk 0:01:09.1]} 29. Nf3
{[%clk 0:00:59.3]} 29... Bxc1 {[%clk 0:01:05.4]} 30. Rxc1 {[%clk 0:00:59.1]}
30... Qc6 {[%clk 0:01:01.4]} 31. Ng5 {[%clk 0:00:56.3]} 31... Kg8 {[%clk
0:00:58.5]} 32. Qg4 {[%clk 0:00:50.2]} 32... h6 {[%clk 0:00:55.9]} 33. Nh3
{[%clk 0:00:39.7]} 33... Nxe4 {[%clk 0:00:47.5]} 34. Qh4 {[%clk 0:00:38.6]}
34... h5 {[%clk 0:00:44.6]} 35. Re1 {[%clk 0:00:36]} 35... d5 {[%clk 0:00:41.8]}
36. Rf1 {[%clk 0:00:17.6]} 36... Ne3 {[%clk 0:00:38.6]} 37. Bxe5 {[%clk
0:00:11]} 37... Nxf1 {[%clk 0:00:35.2]} 38. g4 {[%clk 0:00:07.9]} 38... d4
{[%clk 0:00:30.4]} 39. Kg1 {[%clk 0:00:06.5]} 39... Qc1 {[%clk 0:00:27.6]} 40.
gxh5 {[%clk 0:00:05]} 40... Ne3+ {[%clk 0:00:24.6]} 0-1

[Event "*** Titled Tuesday Blitz"]
[Site "Chess.com"]
[Date "2020.04.07"]
[Round "9"]
[White "sorrm8thatscheckm8"]
[Black "Faqade"]
[Result "0-1"]
[WhiteElo "2447"]
[BlackElo "2608"]
[TimeControl "180+1"]
[EndTime "14:47:39 PDT"]
[Termination "Faqade won by checkmate"]

1. d4 {[%clk 0:03:00.9]} 1... Nf6 {[%clk 0:02:59.7]} 2. c4 {[%clk 0:03:01.5]}
2... g6 {[%clk 0:03:00.2]} 3. Nf3 {[%clk 0:03:01.9]} 3... Bg7 {[%clk 0:03:00.5]}
4. Nc3 {[%clk 0:02:59.9]} 4... O-O {[%clk 0:02:59.9]} 5. g3 {[%clk 0:02:59.6]}
5... d5 {[%clk 0:02:58.6]} 6. Bg2 {[%clk 0:02:58.3]} 6... dxc4 {[%clk
0:02:58.5]} 7. Qa4 {[%clk 0:02:57.6]} 7... a6 {[%clk 0:02:56.9]} 8. Qxc4 {[%clk
0:02:57.2]} 8... b5 {[%clk 0:02:56.2]} 9. Qb3 {[%clk 0:02:56.5]} 9... Bb7 {[%clk
0:02:56.7]} 10. O-O {[%clk 0:02:52.2]} 10... c5 {[%clk 0:02:56]} 11. dxc5 {[%clk
0:02:51.6]} 11... Nbd7 {[%clk 0:02:56.1]} 12. Rd1 {[%clk 0:02:47.2]} 12... Qc8
{[%clk 0:02:53.4]} 13. c6 {[%clk 0:02:44.9]} 13... Bxc6 {[%clk 0:02:51.2]} 14.
Be3 {[%clk 0:02:44.4]} 14... Qb7 {[%clk 0:02:50.3]} 15. a4 {[%clk 0:02:42.2]}
15... b4 {[%clk 0:02:49.7]} 16. Na2 {[%clk 0:02:35.4]} 16... a5 {[%clk
0:02:39.1]} 17. Ne1 {[%clk 0:02:33.2]} 17... Rac8 {[%clk 0:02:29.3]} 18. Bxc6
{[%clk 0:02:28.8]} 18... Rxc6 {[%clk 0:02:30.1]} 19. Nc3 {[%clk 0:02:27.6]}
19... Nc5 {[%clk 0:02:21.6]} 20. Bxc5 {[%clk 0:02:23.9]} 20... Rxc5 {[%clk
0:02:21.2]} 21. Nb5 {[%clk 0:02:21.4]} 21... Rfc8 {[%clk 0:02:17.4]} 22. Nd3
{[%clk 0:02:05.1]} 22... Rd5 {[%clk 0:02:00.1]} 23. Nf4 {[%clk 0:01:58.3]} 23...
Rdc5 {[%clk 0:01:57.7]} 24. Nd3 {[%clk 0:01:44.1]} 24... Rc2 {[%clk 0:01:51.7]}
25. Nd4 {[%clk 0:01:40.8]} 25... R2c4 {[%clk 0:01:51.3]} 26. Nf3 {[%clk
0:01:36.2]} 26... Ne4 {[%clk 0:01:50.4]} 27. Rac1 {[%clk 0:01:25]} 27... Rxc1
{[%clk 0:01:27.1]} 28. Rxc1 {[%clk 0:01:24]} 28... Rxc1+ {[%clk 0:01:27.3]} 29.
Nxc1 {[%clk 0:01:24.9]} 29... Qc6 {[%clk 0:01:22.9]} 30. Nd3 {[%clk 0:01:23.2]}
30... e6 {[%clk 0:01:19.6]} 31. h4 {[%clk 0:01:16.2]} 31... h6 {[%clk
0:01:18.4]} 32. Qd1 {[%clk 0:01:10.9]} 32... Bf6 {[%clk 0:01:10.3]} 33. h5
{[%clk 0:01:09.9]} 33... g5 {[%clk 0:01:09.6]} 34. Nde5 {[%clk 0:00:58.8]} 34...
Qc5 {[%clk 0:01:01.9]} 35. Nd3 {[%clk 0:00:48]} 35... Qd5 {[%clk 0:01:01.4]} 36.
Qc2 {[%clk 0:00:44.4]} 36... Kg7 {[%clk 0:00:58.2]} 37. Kg2 {[%clk 0:00:20.6]}
37... g4 {[%clk 0:00:54.3]} 38. Nf4 {[%clk 0:00:17.1]} 38... b3 {[%clk
0:00:27.6]} 39. Qc8 {[%clk 0:00:13.6]} 39... gxf3+ {[%clk 0:00:23.7]} 40. exf3
{[%clk 0:00:12.8]} 40... Qc5 {[%clk 0:00:24.1]} 41. Qd7 {[%clk 0:00:10.2]} 41...
Qxf2+ {[%clk 0:00:23.5]} 42. Kh1 {[%clk 0:00:09]} 42... Nxg3# {[%clk 0:00:23.3]}
0-1

[Event "*** Titled Tuesday Blitz"]
[Site "Chess.com"]
[Date "2020.04.07"]
[Round "9"]
[White "ajian"]
[Black "levallem"]
[Result "1-0"]
[WhiteElo "2405"]
[BlackElo "2122"]
[TimeControl "180+1"]
[EndTime "14:47:39 PDT"]
[Termination "ajian won by checkmate"]

1. d4 {[%clk 0:03:00.9]} 1... Nf6 {[%clk 0:02:58.7]} 2. c4 {[%clk 0:03:00.6]}
2... e6 {[%clk 0:02:58.9]} 3. Nc3 {[%clk 0:03:00.4]} 3... b6 {[%clk 0:02:55.5]}
4. e4 {[%clk 0:02:55.2]} 4... Bb7 {[%clk 0:02:55.6]} 5. Bd3 {[%clk 0:02:54.4]}
5... Bb4 {[%clk 0:02:53]} 6. Qc2 {[%clk 0:02:52.1]} 6... Bxc3+ {[%clk
0:02:35.2]} 7. bxc3 {[%clk 0:02:51]} 7... d5 {[%clk 0:02:35.6]} 8. cxd5 {[%clk
0:02:45.3]} 8... exd5 {[%clk 0:02:35.7]} 9. e5 {[%clk 0:02:45.7]} 9... Nfd7
{[%clk 0:02:31.3]} 10. Nf3 {[%clk 0:02:15]} 10... Ba6 {[%clk 0:02:22.4]} 11.
Bxh7 {[%clk 0:01:59.7]} 11... Nf8 {[%clk 0:02:04.7]} 12. Bd3 {[%clk 0:01:54.1]}
12... Bxd3 {[%clk 0:02:04.5]} 13. Qxd3 {[%clk 0:01:55]} 13... Ne6 {[%clk
0:02:04.8]} 14. O-O {[%clk 0:01:50.9]} 14... Nd7 {[%clk 0:02:03.5]} 15. a4
{[%clk 0:01:44]} 15... Qe7 {[%clk 0:02:01.9]} 16. a5 {[%clk 0:01:36]} 16... O-O
{[%clk 0:01:56.9]} 17. Ba3 {[%clk 0:01:21.2]} 17... c5 {[%clk 0:01:56.1]} 18.
dxc5 {[%clk 0:01:21.3]} 18... Ndxc5 {[%clk 0:01:55.7]} 19. Qxd5 {[%clk
0:01:18.8]} 19... Rad8 {[%clk 0:01:53.4]} 20. Qc4 {[%clk 0:01:14.3]} 20... Rc8
{[%clk 0:01:44.3]} 21. Qg4 {[%clk 0:01:09.8]} 21... bxa5 {[%clk 0:01:34.5]} 22.
Nd4 {[%clk 0:01:08.7]} 22... Qg5 {[%clk 0:01:15.8]} 23. Qxg5 {[%clk 0:00:55.8]}
23... Nxg5 {[%clk 0:01:16.7]} 24. Nf5 {[%clk 0:00:56]} 24... Rc7 {[%clk
0:01:00.7]} 25. Rfd1 {[%clk 0:00:39.5]} 25... Re8 {[%clk 0:00:47.6]} 26. Rd5
{[%clk 0:00:30.4]} 26... Nge6 {[%clk 0:00:36.7]} 27. Bxc5 {[%clk 0:00:17.6]}
27... Nxc5 {[%clk 0:00:32.4]} 28. Rxa5 {[%clk 0:00:17.2]} 28... Nb3 {[%clk
0:00:30.9]} 29. Ra3 {[%clk 0:00:13.4]} 29... Rxc3 {[%clk 0:00:30.5]} 30. g3
{[%clk 0:00:12.3]} 30... a5 {[%clk 0:00:15.8]} 31. Rdxa5 {[%clk 0:00:09.8]}
31... Rc1+ {[%clk 0:00:15]} 32. Kg2 {[%clk 0:00:10]} 32... Nxa5 {[%clk
0:00:15.6]} 33. Rxa5 {[%clk 0:00:10.2]} 33... Re1 {[%clk 0:00:15.4]} 34. f4
{[%clk 0:00:08.3]} 34... Re2+ {[%clk 0:00:14.9]} 35. Kh3 {[%clk 0:00:06.6]}
35... g6 {[%clk 0:00:14.7]} 36. Nd6 {[%clk 0:00:05.6]} 36... Rb8 {[%clk
0:00:14.9]} 37. Ra7 {[%clk 0:00:04.7]} 37... Rbb2 {[%clk 0:00:14.4]} 38. Rxf7
{[%clk 0:00:04.4]} 38... Rxh2+ {[%clk 0:00:14.2]} 39. Kg4 {[%clk 0:00:04.9]}
39... Rbd2 {[%clk 0:00:13.7]} 40. Ra7 {[%clk 0:00:03.6]} 40... Rd3 {[%clk
0:00:10]} 41. Ne4 {[%clk 0:00:02.9]} 41... Rg2 {[%clk 0:00:07.4]} 42. e6 {[%clk
0:00:03]} 42... Re3 {[%clk 0:00:05.3]} 43. Nf6+ {[%clk 0:00:03]} 43... Kf8
{[%clk 0:00:02.3]} 44. Rf7# {[%clk 0:00:03]} 1-0

[Event "*** Titled Tuesday Blitz"]
[Site "Chess.com"]
[Date "2020.04.07"]
[Round "9"]
[White "canary2016"]
[Black "tomozupan"]
[Result "0-1"]
[WhiteElo "1839"]
[BlackElo "2248"]
[TimeControl "180+1"]
[EndTime "14:47:40 PDT"]
[Termination "tomozupan won by resignation"]

1. Nf3 {[%clk 0:03:00.9]} 1... Nf6 {[%clk 0:02:59.3]} 2. g3 {[%clk 0:03:00.5]}
2... g6 {[%clk 0:02:59.6]} 3. Bg2 {[%clk 0:03:00.7]} 3... Bg7 {[%clk 0:03:00]}
4. O-O {[%clk 0:03:00.8]} 4... O-O {[%clk 0:03:00.9]} 5. d4 {[%clk 0:03:00.2]}
5... d5 {[%clk 0:03:01.2]} 6. c4 {[%clk 0:03:00.4]} 6... Nc6 {[%clk 0:02:58.8]}
7. cxd5 {[%clk 0:02:47.6]} 7... Nxd5 {[%clk 0:02:58.3]} 8. e4 {[%clk 0:02:43]}
8... Nb6 {[%clk 0:02:57.7]} 9. Be3 {[%clk 0:02:40.4]} 9... Nc4 {[%clk
0:02:54.3]} 10. Qc1 {[%clk 0:02:34.7]} 10... Nxe3 {[%clk 0:02:51.9]} 11. fxe3
{[%clk 0:02:29]} 11... Bg4 {[%clk 0:02:46.9]} 12. Nc3 {[%clk 0:02:27.5]} 12...
Qd7 {[%clk 0:02:45.8]} 13. Qd2 {[%clk 0:02:25.6]} 13... Rad8 {[%clk 0:02:44]}
14. Rac1 {[%clk 0:02:23.3]} 14... Bh3 {[%clk 0:02:43]} 15. Qf2 {[%clk
0:02:21.1]} 15... h5 {[%clk 0:02:37.5]} 16. Ng5 {[%clk 0:02:18.5]} 16... Bxg2
{[%clk 0:02:26.9]} 17. Kxg2 {[%clk 0:02:17.3]} 17... f6 {[%clk 0:02:15]} 18. Nf3
{[%clk 0:02:16.3]} 18... e5 {[%clk 0:02:14.4]} 19. d5 {[%clk 0:02:15.1]} 19...
Nb4 {[%clk 0:02:13.7]} 20. Qd2 {[%clk 0:02:09.1]} 20... Na6 {[%clk 0:02:11.5]}
21. Ne2 {[%clk 0:02:01.5]} 21... c6 {[%clk 0:02:07.8]} 22. Nc3 {[%clk 0:01:56]}
22... Nc7 {[%clk 0:02:06.2]} 23. Rfd1 {[%clk 0:01:53.9]} 23... Kh8 {[%clk
0:01:55.2]} 24. Qc2 {[%clk 0:01:48.4]} 24... cxd5 {[%clk 0:01:48.5]} 25. Nxd5
{[%clk 0:01:45.9]} 25... Nxd5 {[%clk 0:01:46.4]} 26. Rxd5 {[%clk 0:01:45.1]}
26... Qe7 {[%clk 0:01:45.1]} 27. Rcd1 {[%clk 0:01:44.3]} 27... Rc8 {[%clk
0:01:44.4]} 28. Qb3 {[%clk 0:01:42.9]} 28... Rf7 {[%clk 0:01:38.7]} 29. Qa4
{[%clk 0:01:38.1]} 29... a6 {[%clk 0:01:36.5]} 30. Rd7 {[%clk 0:01:35.2]} 30...
Qf8 {[%clk 0:01:29.6]} 31. Qa5 {[%clk 0:01:21.6]} 31... Rc2+ {[%clk 0:01:25.5]}
32. Kg1 {[%clk 0:01:19.2]} 32... Rxd7 {[%clk 0:01:24.4]} 33. Rxd7 {[%clk
0:01:18.4]} 33... Kh7 {[%clk 0:01:13.5]} 34. Rd8 {[%clk 0:01:08.7]} 34... Qe7
{[%clk 0:01:08.7]} 35. Rd2 {[%clk 0:01:06.6]} 35... Rc1+ {[%clk 0:00:58.9]} 36.
Kg2 {[%clk 0:01:04.2]} 36... Qe6 {[%clk 0:00:58.3]} 37. Qd8 {[%clk 0:00:46.7]}
37... Qc4 {[%clk 0:00:51.9]} 38. Qd3 {[%clk 0:00:38.8]} 38... Qxa2 {[%clk
0:00:51.5]} 39. Qd8 {[%clk 0:00:23.7]} 39... Qc4 {[%clk 0:00:50.4]} 40. Qd3
{[%clk 0:00:22]} 40... Qxd3 {[%clk 0:00:48.4]} 41. Rxd3 {[%clk 0:00:21.9]} 41...
Rc2+ {[%clk 0:00:48.5]} 42. Rd2 {[%clk 0:00:22.1]} 42... Rxd2+ {[%clk
0:00:48.2]} 43. Nxd2 {[%clk 0:00:21.8]} 43... Bf8 {[%clk 0:00:48.2]} 44. Nc4
{[%clk 0:00:21.1]} 44... Bc5 {[%clk 0:00:47.6]} 45. Kf2 {[%clk 0:00:20.2]} 45...
Kg7 {[%clk 0:00:46]} 46. Ke2 {[%clk 0:00:20]} 46... Kf7 {[%clk 0:00:46.1]} 47.
Kd3 {[%clk 0:00:20.1]} 47... Ke6 {[%clk 0:00:46.1]} 48. Nd2 {[%clk 0:00:19]}
48... b5 {[%clk 0:00:45]} 49. Nb3 {[%clk 0:00:17.7]} 49... Kd6 {[%clk
0:00:44.1]} 50. h3 {[%clk 0:00:16.5]} 50... Kc6 {[%clk 0:00:41.8]} 51. Nd2
{[%clk 0:00:16.1]} 51... a5 {[%clk 0:00:41.3]} 52. b3 {[%clk 0:00:15.2]} 52...
a4 {[%clk 0:00:41]} 53. bxa4 {[%clk 0:00:15.1]} 53... bxa4 {[%clk 0:00:41.2]}
54. Nf1 {[%clk 0:00:11.6]} 54... Kb5 {[%clk 0:00:40.4]} 55. Kc3 {[%clk
0:00:11.5]} 55... Bb4+ {[%clk 0:00:38.4]} 56. Kb2 {[%clk 0:00:10.3]} 56... Be1
{[%clk 0:00:37.3]} 57. g4 {[%clk 0:00:08.4]} 57... hxg4 {[%clk 0:00:36.3]} 58.
hxg4 {[%clk 0:00:08.3]} 58... Kc4 {[%clk 0:00:36.6]} 59. Ng3 {[%clk 0:00:07.2]}
59... Bxg3 {[%clk 0:00:34.4]} 0-1